[Event "Eurasia Open Cup 2019"]
[Site "Ekaterinburg"]
[Date "2019.08.02"]
[Round "3.38"]
[White "Tsybikov, Tumen"]
[Black "Lysenko, Maria"]
[Result "1-0"]
[ECO "B33"]
[WhiteElo "2281"]
[BlackElo "2064"]
[Annotator "NA"]
[PlyCount "109"]
[EventDate "2019.07.31"]
[EventType "swiss"]
[EventCountry "RUS"]
[SourceTitle "playchess.com"]
[Source "ChessBase"]
[SourceQuality "1"]
[TimeControl "5400+30"]

1. e4 {[%emt 0:00:00]} c5 {[%emt 0:00:00]} 2. Nf3 {[%emt 0:00:00]} Nc6 {[%emt 0:00:00]} 3. d4 {[%emt 0:00:00]} cxd4 {[%emt 0:00:00]} 4. Nxd4 {[%emt 0:00:00]} e5 {[%emt 0:00:00]} 5. Nb5 {[%emt 0:00:00]} d6 {[%emt 0:00:00]} 6. N1c3 {[%emt 0:00:00]} a6 {[%emt 0:00:00]} 7. Na3 {[%emt 0:00:00]} b5 {[%emt 0:00:00]} 8. Nd5 {[%emt 0:00:17]} Nf6 {[%emt 0:00:00]} 9. Bg5 {[%emt 0:00:59]} Be7 {[%emt 0:00:00]} 10. Bxf6 {[%emt 0:00:05]} Bxf6 {[%emt 0:00:00]} 11. c3 {[%emt 0:00:26]} Bg5 {[%emt 0:00:00]} 12. Nc2 {[%emt 0:02:44]} Ne7 {[%emt 0:00:00]} 13. h4 {[%emt 0:19:33]} Bh6 {[%emt 0:00:18]} 14. Ncb4 {[%emt 0:01:23]} O-O {[%emt 0:00:24]} 15. g3 {[%emt 0:03:12]} a5 {[%emt 0:04:19]} 16. Nxe7+ {[%emt 0:01:44]} Qxe7 {[%emt 0:00:02]} 17. Nd5 {[%emt 0:00:08]} Qb7 {[%emt 0:00:48]} 18. Qb3 {[%emt 0:12:22]} Rb8 {[%emt 0:06:37]} 19. Bh3 {[%emt 0:08:07]} Be6 {[%emt 0:08:03]} 20. Rd1 {[%emt 0:06:20]} Kh8 {[%emt 0:00:40]} 21. Qc2 {[%emt 0:09:00]} Qd7 {[%emt 0:05:50]} 22. Bg2 {[%emt 0:04:34]} f5 {[%emt 0:02:26]} 23. exf5 {[%emt 0:01:26]} Bxf5 {[%emt 0:00:43]} 24. Be4 {[%emt 0:00:39]} Bxe4 {[%emt 0:05:13]} 25. Qxe4 {[%emt 0:00:17]} Qf7 {[%emt 0:02:07]} 26. O-O {[%emt 0:00:19]} g6 {[%emt 0:02:57]} 27. Kg2 {[%emt 0:00:31]} Qf5 {[%emt 0:04:46]} 28. Qxf5 {[%emt 0:01:24]} gxf5 {[%emt 0:07:01]} 29. Ne7 {[%emt 0:03:58]} Rf6 {[%emt 0:18:29]} 30. Nc6 {[%emt 0:04:04]} Rc8 {[%emt 0:04:55]} 31. Nxa5 {[%emt 0:01:04]} Ra8 {[%emt 0:01:11]} 32. Nb7 {[%emt 0:03:51]} Bf8 {[%emt 0:00:02]} 33. Rd5 {[%emt 0:01:17]} Rf7 {[%emt 0:08:59]} 34. Nxd6 {[%emt 0:01:31]} Rd7 {[%emt 0:02:03]} 35. Rfd1 {[%emt 0:01:35]} Bxd6 {[%emt 0:01:08]} 36. Rxd6 {[%emt 0:00:00]} Rxd6 {[%emt 0:00:14]} 37. Rxd6 {[%emt 0:00:00]} Rxa2 {[%emt 0:00:04]} 38. Rd5 {[%emt 0:00:01]} Rxb2 {[%emt 0:00:02]} 39. Rxe5 {[%emt 0:00:37]} f4 {[%emt 0:01:06]} 40. g4 {[%emt 0:00:06]} Rb3 {[%emt 0:00:27]} 41. Rc5 {[%emt 0:01:57]} Kg7 {[%emt 0:00:59]} 42. Kf3 {[%emt 0:01:36]} b4 {[%emt 0:00:35]} 43. Kxf4 {[%emt 0:01:12]} bxc3 {[%emt 0:00:00]} 44. Kg5 {[%emt 0:00:08]} Rb2 {[%emt 0:00:00]} 45. f4 {[%emt 0:02:29]} c2 {[%emt 0:00:37]} 46. Rc7+ {[%emt 0:00:12]} Kg8 {[%emt 0:00:02]} 47. f5 {[%emt 0:00:23]} Ra2 {[%emt 0:00:47]} 48. Kh6 {[%emt 0:00:11]} Ra6+ {[%emt 0:00:53]} 49. Kh5 {[%emt 0:00:22]} Ra2 {[%emt 0:00:09]} 50. g5 {[%emt 0:00:36]} Rb2 {[%emt 0:00:16]} 51. Kh6 {[%emt 0:00:00]} Rb6+ {[%emt 0:01:10]} 52. g6 {[%emt 0:00:50]} Rb8 {[%emt 0:00:45]} 53. Rxc2 {[%emt 0:00:00]} Rf8 {[%emt 0:01:06]} 54. h5 {[%emt 0:00:02]} hxg6 {[%emt 0:00:57]} 55. hxg6 {[%emt 0:01:19]} 1-0

[Event "Eurasia Open Cup 2019"]
[Site "Ekaterinburg"]
[Date "2019.08.02"]
[Round "3.39"]
[White "Karpytchev, Vladimir"]
[Black "Isanzhulov, Arystan"]
[Result "0-1"]
[ECO "B01"]
[WhiteElo "2043"]
[BlackElo "2278"]
[Annotator "NA"]
[PlyCount "99"]
[EventDate "2019.07.31"]
[EventType "swiss"]
[EventCountry "RUS"]
[SourceTitle "playchess.com"]
[Source "ChessBase"]
[SourceQuality "1"]
[TimeControl "5400+30"]

1. e4 {[%emt 0:00:00]} Nc6 {[%emt 0:08:08]} 2. Nf3 {[%emt 0:05:45]} d5 {[%emt 0:03:27]} 3. exd5 {[%emt 0:02:23]} Qxd5 {[%emt 0:00:05]} 4. Nc3 {[%emt 0:00:04]} Qa5 {[%emt 0:04:55]} 5. d4 {[%emt 0:07:15]} Nf6 {[%emt 0:14:13]} 6. Bb5 {[%emt 0:09:45]} Bd7 {[%emt 0:00:22]} 7. O-O {[%emt 0:07:14]} O-O-O {[%emt 0:12:44]} 8. Qe2 {[%emt 0:02:35]} a6 {[%emt 0:10:28]} 9. Bxc6 {[%emt 0:04:44]} Bxc6 {[%emt 0:01:26]} 10. Ne5 {[%emt 0:02:44]} Be8 {[%emt 0:02:42]} 11. Be3 {[%emt 0:00:29]} e6 {[%emt 0:06:12]} 12. a3 {[%emt 0:01:09]} Nd5 {[%emt 0:04:33]} 13. Ne4 {[%emt 0:05:45]} f6 {[%emt 0:04:02]} 14. b4 {[%emt 0:00:18]} Qa4 {[%emt 0:03:56]} 15. Nd3 {[%emt 0:01:58]} Bg6 {[%emt 0:02:53]} 16. Nec5 {[%emt 0:02:31]} Bxc5 {[%emt 0:00:10]} 17. Nxc5 {[%emt 0:00:00]} Qxc2 {[%emt 0:01:14]} 18. Qxc2 {[%emt 0:00:30]} Bxc2 {[%emt 0:00:04]} 19. Nxe6 {[%emt 0:00:22]} Rd6 {[%emt 0:02:57]} 20. Nc5 {[%emt 0:03:07]} g5 {[%emt 0:03:20]} 21. Rac1 {[%emt 0:00:33]} Bg6 {[%emt 0:02:12]} 22. Rfe1 {[%emt 0:04:36]} Kb8 {[%emt 0:00:05]} 23. Bd2 {[%emt 0:00:16]} Ka7 {[%emt 0:03:56]} 24. f3 {[%emt 0:02:44]} Rc6 {[%emt 0:01:01]} 25. Kf2 {[%emt 0:02:04]} b6 {[%emt 0:03:29]} 26. Ne4 {[%emt 0:00:12]} Rxc1 {[%emt 0:02:01]} 27. Bxc1 {[%emt 0:04:05]} Rd8 {[%emt 0:00:00]} 28. g3 {[%emt 0:00:12]} Kb7 {[%emt 0:01:19]} 29. Bb2 {[%emt 0:00:34]} Bxe4 {[%emt 0:01:06]} 30. fxe4 {[%emt 0:01:11]} Ne7 {[%emt 0:01:19]} 31. Ke3 {[%emt 0:00:31]} f5 {[%emt 0:00:00]} 32. Rf1 {[%emt 0:01:04]} Re8 {[%emt 0:00:00]} 33. e5 {[%emt 0:03:50]} Kc6 {[%emt 0:00:01]} 34. Rc1+ {[%emt 0:00:14]} Kd7 {[%emt 0:01:03]} 35. Kd3 {[%emt 0:01:09]} b5 {[%emt 0:00:04]} 36. Rf1 {[%emt 0:00:18]} Ke6 {[%emt 0:00:56]} 37. g4 {[%emt 0:03:58]} Rf8 {[%emt 0:01:15]} 38. Bc1 {[%emt 0:00:57]} h6 {[%emt 0:00:00]} 39. h4 {[%emt 0:02:40]} gxh4 {[%emt 0:00:00]} 40. Bxh6 {[%emt 0:01:32]} Rg8 {[%emt 0:00:30]} 41. gxf5+ {[%emt 0:04:27]} Nxf5 {[%emt 0:00:42]} 42. Bf4 {[%emt 0:01:33]} Rg4 {[%emt 0:00:05]} 43. Rf2 {[%emt 0:00:48]} Kd5 {[%emt 0:01:35]} 44. e6 {[%emt 0:01:50]} Kxe6 {[%emt 0:00:20]} 45. Ke4 {[%emt 0:00:56]} c6 {[%emt 0:00:15]} 46. Kf3 {[%emt 0:00:09]} Rg8 {[%emt 0:00:32]} 47. Be5 {[%emt 0:00:44]} Kd5 {[%emt 0:00:27]} 48. Rc2 {[%emt 0:00:09]} Ke6 {[%emt 0:00:53]} 49. Re2 {[%emt 0:00:44]} Kf7 {[%emt 0:00:28]} 50. Bf4 {[%emt 0:00:44]} 0-1

[Event "Eurasia Open Cup 2019"]
[Site "Ekaterinburg"]
[Date "2019.08.02"]
[Round "3.40"]
[White "Protopopova, Anastasiya"]
[Black "Kozlov, Denis"]
[Result "1-0"]
[ECO "A62"]
[WhiteElo "2272"]
[BlackElo "2013"]
[Annotator "NA"]
[PlyCount "55"]
[EventDate "2019.07.31"]
[EventType "swiss"]
[EventCountry "RUS"]
[SourceTitle "playchess.com"]
[Source "ChessBase"]
[SourceQuality "1"]
[TimeControl "5400+30"]

1. d4 {[%emt 0:00:00]} Nf6 {[%emt 0:00:00]} 2. c4 {[%emt 0:00:00]} e6 {[%emt 0:00:00]} 3. g3 {[%emt 0:00:00]} c5 {[%emt 0:00:00]} 4. d5 {[%emt 0:00:00]} exd5 {[%emt 0:00:00]} 5. cxd5 {[%emt 0:00:00]} d6 {[%emt 0:00:00]} 6. Nc3 {[%emt 0:00:00]} g6 {[%emt 0:00:00]} 7. Bg2 {[%emt 0:00:05]} Bg7 {[%emt 0:00:00]} 8. Nf3 {[%emt 0:00:11]} O-O {[%emt 0:00:05]} 9. O-O {[%emt 0:00:00]} Re8 {[%emt 0:00:05]} 10. Bf4 {[%emt 0:00:05]} Ne4 {[%emt 0:00:05]} 11. Nxe4 {[%emt 0:04:11]} Rxe4 {[%emt 0:00:05]} 12. Nd2 {[%emt 0:00:05]} Rxf4 {[%emt 0:00:10]} 13. gxf4 {[%emt 0:00:00]} Bxb2 {[%emt 0:00:10]} 14. Rb1 {[%emt 0:00:00]} Bg7 {[%emt 0:00:10]} 15. Qb3 {[%emt 0:00:00]} Na6 {[%emt 0:02:16]} 16. e4 {[%emt 0:00:05]} Rb8 {[%emt 0:09:58]} 17. Qg3 {[%emt 0:03:36]} Qc7 {[%emt 0:11:40]} 18. Rfe1 {[%emt 0:04:43]} b5 {[%emt 0:05:27]} 19. e5 {[%emt 0:03:00]} Bf5 {[%emt 0:03:58]} 20. Be4 {[%emt 0:21:05]} Qd7 {[%emt 0:27:40]} 21. Rbd1 {[%emt 0:06:39]} Rc8 {[%emt 0:09:04]} 22. Bxf5 {[%emt 0:02:56]} gxf5 {[%emt 0:00:45]} 23. Nf3 {[%emt 0:01:04]} Nc7 {[%emt 0:06:41]} 24. Kh1 {[%emt 0:11:15]} Kh8 {[%emt 0:01:23]} 25. exd6 {[%emt 0:03:20]} Qxd6 {[%emt 0:01:14]} 26. Ne5 {[%emt 0:00:51]} Kg8 {[%emt 0:03:55]} 27. Nc6 {[%emt 0:03:05]} Re8 {[%emt 0:02:19]} 28. Rg1 {[%emt 0:00:53]} 1-0

[Event "Eurasia Open Cup 2019"]
[Site "Ekaterinburg"]
[Date "2019.08.02"]
[Round "3.41"]
[White "Fedorov, Ivan"]
[Black "Mamatov, Melis"]
[Result "0-1"]
[ECO "A07"]
[WhiteElo "1997"]
[BlackElo "2269"]
[Annotator "NA"]
[PlyCount "66"]
[EventDate "2019.07.31"]
[EventType "swiss"]
[EventCountry "RUS"]
[SourceTitle "playchess.com"]
[Source "ChessBase"]
[SourceQuality "1"]
[TimeControl "5400+30"]

1. Nf3 {[%emt 0:00:00]} d5 {[%emt 0:00:00]} 2. g3 {[%emt 0:00:06]} Nf6 {[%emt 0:00:29]} 3. Bg2 {[%emt 0:00:10]} Bf5 {[%emt 0:00:20]} 4. O-O {[%emt 0:04:21]} Nc6 {[%emt 0:00:31]} 5. b4 {[%emt 0:06:41]} Nxb4 {[%emt 0:01:22]} 6. Nd4 {[%emt 0:00:26]} Bd7 {[%emt 0:00:21]} 7. c4 {[%emt 0:03:39]} Nc6 {[%emt 0:05:52]} 8. Bb2 {[%emt 0:01:01]} e6 {[%emt 0:01:16]} 9. Nc2 {[%emt 0:06:58]} Be7 {[%emt 0:00:45]} 10. Nc3 {[%emt 0:01:01]} dxc4 {[%emt 0:00:40]} 11. e4 {[%emt 0:00:25]} Ne5 {[%emt 0:00:56]} 12. Rb1 {[%emt 0:16:53]} Nd3 {[%emt 0:01:40]} 13. Ne3 {[%emt 0:09:11]} e5 {[%emt 0:15:45]} 14. Ba1 {[%emt 0:02:26]} b6 {[%emt 0:06:36]} 15. Nxc4 {[%emt 0:01:59]} Be6 {[%emt 0:02:19]} 16. Nxe5 {[%emt 0:05:18]} Nxe5 {[%emt 0:01:05]} 17. d4 {[%emt 0:00:24]} Ng6 {[%emt 0:09:02]} 18. h3 {[%emt 0:03:08]} O-O {[%emt 0:07:09]} 19. f4 {[%emt 0:02:05]} Bc4 {[%emt 0:00:19]} 20. Rf2 {[%emt 0:01:21]} Re8 {[%emt 0:00:58]} 21. f5 {[%emt 0:02:41]} Nf8 {[%emt 0:00:52]} 22. Rbb2 {[%emt 0:15:19]} c5 {[%emt 0:01:18]} 23. Rbd2 {[%emt 0:03:16]} cxd4 {[%emt 0:02:28]} 24. Rxd4 {[%emt 0:00:00]} Qc7 {[%emt 0:00:09]} 25. e5 {[%emt 0:01:17]} Rad8 {[%emt 0:01:25]} 26. exf6 {[%emt 0:03:48]} Rxd4 {[%emt 0:01:40]} 27. Qxd4 {[%emt 0:00:25]} Bxf6 {[%emt 0:00:17]} 28. Qd1 {[%emt 0:05:20]} Qxg3 {[%emt 0:00:13]} 29. Bb2 {[%emt 0:02:39]} Bd4 {[%emt 0:00:17]} 30. Ne4 {[%emt 0:00:39]} Bxf2+ {[%emt 0:00:09]} 31. Nxf2 {[%emt 0:00:05]} Re2 {[%emt 0:00:08]} 32. Bd4 {[%emt 0:00:38]} Bd5 {[%emt 0:00:25]} 33. Qf1 {[%emt 0:00:29]} Re1 {[%emt 0:00:04]} 0-1

[Event "Eurasia Open Cup 2019"]
[Site "Ekaterinburg"]
[Date "2019.08.02"]
[Round "3.42"]
[White "Garifullina, Leya"]
[Black "Makhrov, Alexander"]
[Result "1-0"]
[ECO "B76"]
[WhiteElo "2268"]
[BlackElo "1994"]
[Annotator "ChessBase"]
[PlyCount "55"]
[EventDate "2019.07.31"]
[EventType "swiss"]
[EventCountry "RUS"]
[SourceTitle "playchess.com"]
[Source "ChessBase"]
[SourceQuality "1"]
[TimeControl "5400+30"]

1. e4 {[%emt 0:00:00]} c5 {[%emt 0:00:00]} 2. Nf3 {[%emt 0:00:00]} d6 {[%emt 0:00:00]} 3. d4 {[%emt 0:00:00]} cxd4 {[%emt 0:00:00]} 4. Nxd4 {[%emt 0:00:00]} Nf6 {[%emt 0:00:00]} 5. Nc3 {[%emt 0:00:00]} g6 {[%emt 0:00:05]} 6. Be3 {[%emt 0:00:10]} Bg7 {[%emt 0:00:05]} 7. f3 {[%emt 0:00:05]} Nc6 {[%emt 0:00:30]} 8. Qd2 {[%emt 0:01:02]} O-O {[%emt 0:00:10]} 9. O-O-O {[%emt 0:00:21]} Nxd4 {[%emt 0:03:45]} 10. Bxd4 {[%emt 0:00:10]} Be6 {[%emt 0:00:10]} 11. Kb1 {[%emt 0:00:40]} Re8 {[%emt 0:03:29]} 12. Bb5 {[%emt 0:01:41]} Nd7 {[%emt 0:05:01]} 13. Bxg7 {[%emt 0:00:25]} Kxg7 {[%emt 0:00:05]} 14. g4 {[%emt 0:03:06]} a6 {[%emt 0:02:38]} 15. Be2 {[%emt 0:00:51]} Qa5 {[%emt 0:01:36]} 16. h4 {[%emt 0:01:26]} h6 {[%emt 0:00:20]} 17. f4 {[%emt 0:01:15]} b5 {[%emt 0:10:35]} 18. h5 {[%emt 0:02:27]} Rh8 {[%emt 0:14:15]} 19. Qd4+ {[%emt 0:03:20]} f6 {[%emt 0:02:43]} 20. hxg6 {[%emt 0:00:20]} b4 {[%emt 0:01:24]} 21. Nd5 {[%emt 0:01:00]} Bxd5 {[%emt 0:13:44]} 22. exd5 {[%emt 0:01:51]} Nc5 {[%emt 0:01:20]} 23. Qe3 {[%emt 0:02:35]} Qc7 {[%emt 0:02:21]} 24. f5 {[%emt 0:00:15]} Na4 {[%emt 0:09:52]} 25. Bc4 {[%emt 0:05:58]} Qa7 {[%emt 0:04:25]} 26. Qe6 {[%emt 0:02:50]} Rhf8 {[%emt 0:06:08]} 27. g5 {[%emt 0:00:31]} fxg5 {[%emt 0:03:20]} 28. Rxh6 {[%emt 0:00:20]} 1-0

[Event "Eurasia Open Cup 2019"]
[Site "Ekaterinburg"]
[Date "2019.08.02"]
[Round "3.43"]
[White "Dubnikova, Anastasia"]
[Black "Odegov, Artem"]
[Result "0-1"]
[ECO "A61"]
[WhiteElo "1991"]
[BlackElo "2261"]
[Annotator "NA"]
[PlyCount "72"]
[EventDate "2019.07.31"]
[EventType "swiss"]
[EventCountry "RUS"]
[SourceTitle "playchess.com"]
[Source "ChessBase"]
[SourceQuality "1"]
[TimeControl "5400+30"]

1. d4 {[%emt 0:00:00]} Nf6 {[%emt 0:00:00]} 2. c4 {[%emt 0:00:00]} c5 {[%emt 0:00:00]} 3. d5 {[%emt 0:00:00]} e6 {[%emt 0:00:00]} 4. Nc3 {[%emt 0:00:00]} exd5 {[%emt 0:00:00]} 5. cxd5 {[%emt 0:00:00]} d6 {[%emt 0:00:00]} 6. Nf3 {[%emt 0:00:03]} g6 {[%emt 0:00:01]} 7. Bf4 {[%emt 0:00:00]} Bg7 {[%emt 0:00:35]} 8. Qa4+ {[%emt 0:00:19]} Bd7 {[%emt 0:01:05]} 9. Qb3 {[%emt 0:00:06]} b5 {[%emt 0:02:07]} 10. Nxb5 {[%emt 0:00:08]} Bxb5 {[%emt 0:01:34]} 11. Qxb5+ {[%emt 0:10:15]} Nbd7 {[%emt 0:00:04]} 12. g3 {[%emt 0:00:08]} Rb8 {[%emt 0:00:01]} 13. Qd3 {[%emt 0:10:27]} Rxb2 {[%emt 0:14:06]} 14. Bg2 {[%emt 0:00:45]} Nb6 {[%emt 0:10:06]} 15. Nd2 {[%emt 0:03:01]} Nh5 {[%emt 0:09:17]} 16. Qe4+ {[%emt 0:11:15]} Kf8 {[%emt 0:14:59]} 17. O-O {[%emt 0:21:17]} Rb4 {[%emt 0:01:14]} 18. Qe3 {[%emt 0:03:11]} Nxf4 {[%emt 0:02:01]} 19. gxf4 {[%emt 0:00:41]} Bxa1 {[%emt 0:00:57]} 20. Rxa1 {[%emt 0:00:08]} Qf6 {[%emt 0:00:33]} 21. Rd1 {[%emt 0:00:10]} Qxf4 {[%emt 0:00:21]} 22. Qc3 {[%emt 0:00:45]} Qd4 {[%emt 0:09:03]} 23. Qg3 {[%emt 0:00:08]} Nc4 {[%emt 0:00:26]} 24. a3 {[%emt 0:01:02]} Rb6 {[%emt 0:02:12]} 25. e3 {[%emt 0:04:50]} Qc3 {[%emt 0:09:10]} 26. Ne4 {[%emt 0:03:07]} Qe5 {[%emt 0:00:18]} 27. Qh4 {[%emt 0:03:11]} Qe7 {[%emt 0:02:26]} 28. Qh6+ {[%emt 0:04:28]} Kg8 {[%emt 0:05:13]} 29. h4 {[%emt 0:00:27]} f5 {[%emt 0:00:57]} 30. Nxc5 {[%emt 0:06:20]} dxc5 {[%emt 0:03:41]} 31. d6 {[%emt 0:05:48]} Nxd6 {[%emt 0:02:53]} 32. Bd5+ {[%emt 0:00:04]} Nf7 {[%emt 0:01:10]} 33. Bc4 {[%emt 0:00:10]} g5 {[%emt 0:00:03]} 34. Qh5 {[%emt 0:01:30]} Rg6 {[%emt 0:06:01]} 35. Kf1 {[%emt 0:00:03]} Kg7 {[%emt 0:00:27]} 36. Qf3 {[%emt 0:00:33]} Qe4 {[%emt 0:01:08]} 0-1

[Event "Eurasia Open Cup 2019"]
[Site "Ekaterinburg"]
[Date "2019.08.02"]
[Round "3.44"]
[White "Zasukhin, Vadim"]
[Black "Mamontova, Anastasia"]
[Result "1-0"]
[ECO "B17"]
[WhiteElo "2249"]
[BlackElo "1989"]
[Annotator "NA"]
[PlyCount "73"]
[EventDate "2019.07.31"]
[EventType "swiss"]
[EventCountry "RUS"]
[SourceTitle "playchess.com"]
[Source "ChessBase"]
[SourceQuality "1"]
[TimeControl "5400+30"]

1. e4 {[%emt 0:00:00]} c6 {[%emt 0:14:26]} 2. d4 {[%emt 0:00:00]} d5 {[%emt 0:00:21]} 3. Nc3 {[%emt 0:00:00]} dxe4 {[%emt 0:00:15]} 4. Nxe4 {[%emt 0:00:00]} Nd7 {[%emt 0:00:16]} 5. Bc4 {[%emt 0:00:31]} Ngf6 {[%emt 0:04:00]} 6. Nxf6+ {[%emt 0:01:07]} Nxf6 {[%emt 0:00:32]} 7. c3 {[%emt 0:00:00]} e6 {[%emt 0:03:06]} 8. Nf3 {[%emt 0:01:31]} Bd6 {[%emt 0:02:56]} 9. O-O {[%emt 0:00:10]} Qc7 {[%emt 0:02:26]} 10. Qe2 {[%emt 0:00:25]} O-O {[%emt 0:10:40]} 11. Bg5 {[%emt 0:00:31]} Nd5 {[%emt 0:02:09]} 12. Rfd1 {[%emt 0:00:35]} Rb8 {[%emt 0:07:31]} 13. Bb3 {[%emt 0:01:36]} b5 {[%emt 0:05:28]} 14. Rac1 {[%emt 0:02:34]} c5 {[%emt 0:16:33]} 15. dxc5 {[%emt 0:01:26]} Qxc5 {[%emt 0:00:50]} 16. Qe4 {[%emt 0:02:25]} Bb7 {[%emt 0:06:31]} 17. Bc2 {[%emt 0:01:19]} g6 {[%emt 0:02:14]} 18. Qh4 {[%emt 0:00:35]} f6 {[%emt 0:01:00]} 19. Bh6 {[%emt 0:01:44]} Rf7 {[%emt 0:00:44]} 20. Bb3 {[%emt 0:01:05]} g5 {[%emt 0:05:14]} 21. Qd4 {[%emt 0:04:47]} Qc7 {[%emt 0:04:16]} 22. h4 {[%emt 0:02:46]} Bc5 {[%emt 0:00:55]} 23. Qg4 {[%emt 0:02:25]} f5 {[%emt 0:03:36]} 24. Qxg5+ {[%emt 0:03:48]} Kh8 {[%emt 0:00:05]} 25. Qd2 {[%emt 0:07:52]} Rg8 {[%emt 0:00:41]} 26. Kf1 {[%emt 0:00:19]} Rg6 {[%emt 0:02:08]} 27. h5 {[%emt 0:07:12]} Rg4 {[%emt 0:01:07]} 28. Bc2 {[%emt 0:07:11]} e5 {[%emt 0:02:20]} 29. Bb3 {[%emt 0:04:10]} Rd7 {[%emt 0:00:09]} 30. Ng5 {[%emt 0:02:47]} Ne3+ {[%emt 0:01:08]} 31. fxe3 {[%emt 0:00:00]} Rxd2 {[%emt 0:00:43]} 32. Rxd2 {[%emt 0:00:00]} Rxg5 {[%emt 0:01:00]} 33. Bxg5 {[%emt 0:00:14]} Be7 {[%emt 0:00:17]} 34. Bxe7 {[%emt 0:02:17]} Qxe7 {[%emt 0:00:00]} 35. Rcd1 {[%emt 0:00:12]} Bc6 {[%emt 0:01:12]} 36. h6 {[%emt 0:00:16]} Be8 {[%emt 0:00:27]} 37. Rd8 {[%emt 0:00:12]} 1-0

[Event "Eurasia Open Cup 2019"]
[Site "Ekaterinburg"]
[Date "2019.08.02"]
[Round "3.45"]
[White "Morgachev, Sergey"]
[Black "Akhtariev, Andrey"]
[Result "1-0"]
[ECO "E11"]
[WhiteElo "1965"]
[BlackElo "2243"]
[Annotator "NA"]
[PlyCount "117"]
[EventDate "2019.07.31"]
[EventType "swiss"]
[EventCountry "RUS"]
[SourceTitle "playchess.com"]
[Source "ChessBase"]
[SourceQuality "1"]
[TimeControl "5400+30"]

1. d4 {[%emt 0:00:00]} Nf6 {[%emt 0:00:20]} 2. c4 {[%emt 0:00:00]} e6 {[%emt 0:00:05]} 3. g3 {[%emt 0:00:00]} Bb4+ {[%emt 0:00:20]} 4. Bd2 {[%emt 0:00:15]} Qe7 {[%emt 0:00:00]} 5. Nf3 {[%emt 0:00:15]} Nc6 {[%emt 0:00:06]} 6. Nc3 {[%emt 0:00:20]} O-O {[%emt 0:01:01]} 7. Bg2 {[%emt 0:00:21]} d6 {[%emt 0:00:46]} 8. O-O {[%emt 0:01:17]} a5 {[%emt 0:00:15]} 9. Qc2 {[%emt 0:09:46]} h6 {[%emt 0:12:54]} 10. e4 {[%emt 0:14:02]} Bxc3 {[%emt 0:02:30]} 11. Bxc3 {[%emt 0:00:33]} e5 {[%emt 0:00:05]} 12. d5 {[%emt 0:04:33]} Nb4 {[%emt 0:06:49]} 13. Qb1 {[%emt 0:13:19]} Na6 {[%emt 0:06:43]} 14. Nd2 {[%emt 0:03:53]} Nc5 {[%emt 0:01:56]} 15. b3 {[%emt 0:04:52]} Nh7 {[%emt 0:06:03]} 16. f4 {[%emt 0:05:23]} exf4 {[%emt 0:01:29]} 17. gxf4 {[%emt 0:03:45]} f5 {[%emt 0:01:04]} 18. e5 {[%emt 0:02:56]} dxe5 {[%emt 0:02:45]} 19. fxe5 {[%emt 0:01:07]} Nf6 {[%emt 0:06:06]} 20. e6 {[%emt 0:09:54]} g6 {[%emt 0:01:40]} 21. Qe1 {[%emt 0:01:26]} Ra6 {[%emt 0:07:41]} 22. Qg3 {[%emt 0:04:00]} Kh7 {[%emt 0:00:51]} 23. Bd4 {[%emt 0:10:21]} b6 {[%emt 0:07:14]} 24. Rae1 {[%emt 0:02:30]} Bb7 {[%emt 0:03:00]} 25. Qc3 {[%emt 0:01:22]} Raa8 {[%emt 0:01:22]} 26. a3 {[%emt 0:03:31]} Rae8 {[%emt 0:06:14]} 27. b4 {[%emt 0:01:32]} axb4 {[%emt 0:00:19]} 28. axb4 {[%emt 0:00:11]} Nce4 {[%emt 0:00:14]} 29. Nxe4 {[%emt 0:00:22]} Nxe4 {[%emt 0:00:11]} 30. Bxe4 {[%emt 0:01:03]} fxe4 {[%emt 0:00:04]} 31. Bf6 {[%emt 0:00:46]} Qd6 {[%emt 0:00:07]} 32. Be5 {[%emt 0:01:02]} Qe7 {[%emt 0:04:10]} 33. Bf6 {[%emt 0:00:47]} Qd6 {[%emt 0:00:13]} 34. b5 {[%emt 0:00:25]} Ra8 {[%emt 0:03:20]} 35. Qe5 {[%emt 0:00:34]} Qc5+ {[%emt 0:00:48]} 36. Qd4 {[%emt 0:00:36]} Rxf6 {[%emt 0:10:59]} 37. Qxc5 {[%emt 0:00:05]} Rxf1+ {[%emt 0:00:02]} 38. Rxf1 {[%emt 0:00:12]} bxc5 {[%emt 0:00:04]} 39. Rf7+ {[%emt 0:00:12]} Kg8 {[%emt 0:00:03]} 40. Rxc7 {[%emt 0:00:21]} Bc8 {[%emt 0:00:24]} 41. Rxc5 {[%emt 0:01:39]} Kg7 {[%emt 0:00:08]} 42. Rc7+ {[%emt 0:00:29]} Kf6 {[%emt 0:00:04]} 43. e7 {[%emt 0:00:32]} Bh3 {[%emt 0:03:49]} 44. Kf2 {[%emt 0:00:33]} Kf7 {[%emt 0:00:16]} 45. Ke3 {[%emt 0:00:13]} Bf5 {[%emt 0:00:14]} 46. b6 {[%emt 0:00:31]} Ra3+ {[%emt 0:00:47]} 47. Kd4 {[%emt 0:00:21]} Rd3+ {[%emt 0:00:17]} 48. Kc5 {[%emt 0:00:36]} Rb3 {[%emt 0:00:34]} 49. Ra7 {[%emt 0:00:25]} e3 {[%emt 0:00:04]} 50. d6 {[%emt 0:00:37]} Bg4 {[%emt 0:00:14]} 51. Ra8 {[%emt 0:00:30]} Bd7 {[%emt 0:02:15]} 52. Rf8+ {[%emt 0:00:21]} Ke6 {[%emt 0:00:47]} 53. e8=Q+ {[%emt 0:00:06]} Bxe8 {[%emt 0:00:03]} 54. Rxe8+ {[%emt 0:00:24]} Kd7 {[%emt 0:00:04]} 55. Re7+ {[%emt 0:00:03]} Kd8 {[%emt 0:00:02]} 56. Kc6 {[%emt 0:00:08]} Rb4 {[%emt 0:00:04]} 57. c5 {[%emt 0:00:11]} Rb3 {[%emt 0:00:27]} 58. b7 {[%emt 0:00:22]} g5 {[%emt 0:00:19]} 59. Rxe3 {[%emt 0:00:30]} 1-0